fUSD/lending_fUSD_20240519
["ID","MTS","AMOUNT","RATE_DAILY","PERIOD"]
[327446847,1716078639915,-500.0,0.00027397,2]
[327446848,1716078639926,-500.0,0.00027397,2]
[327446849,1716078639936,-500.0,0.00027397,2]
[327446850,1716078639946,-505.93,0.00027397,2]
[327446851,1716078639956,-517.25,0.00027397,2]
[327446852,1716078639966,-500.0,0.00027397,2]
[327446853,1716078639976,-500.0,0.00027397,2]
[327446854,1716078639986,-500.0,0.00027397,2]
[327446855,1716078639996,-500.0,0.00027397,2]
[327446856,1716078640006,-500.0,0.00027397,2]
[327446857,1716078640015,-500.0,0.00027397,2]
[327446858,1716078640025,-500.0,0.00027397,2]
[327446859,1716078640034,-500.0,0.00027397,2]
[327446860,1716078640044,-500.0,0.00027397,2]
[327446861,1716078640053,-500.0,0.00027397,2]
[327446862,1716078640064,-500.0,0.00027397,2]
[327446863,1716078640074,-500.0,0.00027397,2]
[327446864,1716078640084,-500.0,0.00027397,2]
[327446866,1716078640094,-500.0,0.00027397,2]
[327446868,1716078640103,-500.0,0.00027397,2]
[327446870,1716078640114,-500.0,0.00027397,2]
[327446872,1716078640124,-500.0,0.00027397,2]
[327446874,1716078640134,-500.0,0.00027397,2]
[327446875,1716078640144,-500.0,0.00027397,2]
[327446876,1716078640154,-500.0,0.00027397,2]
[327446877,1716078640165,-500.0,0.00027397,2]
[327446878,1716078640175,-500.0,0.00027397,2]
[327446879,1716078640186,-500.0,0.00027397,2]
[327446880,1716078640196,-520.64655986,0.00027397,2]
[327446881,1716078640206,-500.0,0.00027397,2]
[327446882,1716078640216,-500.0,0.00027397,2]
[327446883,1716078640226,-410.88642997,0.00027397,2]
[327446884,1716078640235,-500.0,0.00027397,2]
[327446885,1716078640245,-500.0,0.00027397,2]
[327446886,1716078640255,-500.0,0.00027397,2]
[327446887,1716078640265,-500.0,0.00027397,2]
[327446888,1716078640278,-500.0,0.00027397,2]
[327446889,1716078640288,-500.0,0.00027397,2]
[327446890,1716078640298,-366.17852157,0.00027397,2]
[327446891,1716078640308,-500.0,0.00027397,2]
[327446892,1716078640317,-500.0,0.00027397,2]
[327446893,1716078640327,-500.0,0.00027397,2]
[327446894,1716078640338,-500.0,0.00027397,2]
[327446895,1716078640347,-500.0,0.00027397,2]
[327446896,1716078640358,-500.0,0.00027397,2]
[327446897,1716078640367,-604.31735166,0.00027397,2]
[327446898,1716078640378,-500.0,0.00027397,2]
[327446899,1716078640387,-500.0,0.00027397,2]
[327446900,1716078640397,-500.0,0.00027397,2]
[327446901,1716078640406,-500.0,0.00027397,2]
[327446902,1716078640416,-637.56729569,0.00027397,2]
[327446903,1716078640427,-500.0,0.00027397,2]
[327446904,1716078640436,-500.0,0.00027397,2]
[327446905,1716078640446,-500.0,0.00027397,2]
[327446906,1716078640455,-500.0,0.00027397,2]
[327446907,1716078640464,-500.0,0.00027397,2]
[327446908,1716078640474,-500.0,0.00027397,2]
[327446909,1716078640483,-500.0,0.00027397,2]
[327446910,1716078640493,-500.0,0.00027397,2]
[327446911,1716078640503,-500.0,0.00027397,2]
[327446912,1716078640511,-500.0,0.00027397,2]
[327446913,1716078640521,-500.0,0.00027397,2]
[327446914,1716078640531,-500.0,0.00027397,2]
[327446915,1716078640551,-500.0,0.00027397,2]
[327446916,1716078640562,-500.0,0.00027397,2]
[327446917,1716078640572,-500.0,0.00027397,2]
[327446918,1716078640582,-505.10124003,0.00027397,2]
[327446919,1716078640592,-500.0,0.00027397,2]
[327446920,1716078640603,-500.0,0.00027397,2]
[327446921,1716078640613,-345.63850717,0.00027397,2]
[327446922,1716078640623,-500.0,0.00027397,2]
[327446923,1716078640633,-500.0,0.00027397,2]
[327446924,1716078640643,-500.0,0.00027397,2]
[327446925,1716078640653,-500.0,0.00027397,2]
[327446926,1716078640663,-500.0,0.00027397,2]
[327446927,1716078640674,-500.0,0.00027397,2]
[327446928,1716078640684,-500.0,0.00027397,2]
[327446929,1716078640694,-500.0,0.00027397,2]
[327446930,1716078640704,-500.0,0.00027397,2]
[327446931,1716078640715,-500.0,0.00027397,2]
[327446932,1716078640725,-733.98,0.00027397,2]
[327446933,1716078640735,-500.0,0.00027397,2]
[327446934,1716078640745,-500.0,0.00027397,2]
[327446935,1716078640755,-500.0,0.00027397,2]
[327446936,1716078640765,-500.0,0.00027397,2]
[327446937,1716078640775,-500.0,0.00027397,2]
[327446938,1716078640784,-500.0,0.00027397,2]
[327446939,1716078640794,-500.0,0.00027397,2]
[327446940,1716078640804,-500.0,0.00027397,2]
[327446941,1716078640814,-232.27789178,0.00027397,2]
[327446942,1716078640823,-500.0,0.00027397,2]
[327446943,1716078640834,-500.0,0.00027397,2]
[327446944,1716078640844,-500.0,0.00027397,2]
[327446945,1716078640854,-500.0,0.00027397,2]
[327446946,1716078640864,-500.0,0.00027397,2]
[327446947,1716078640874,-722.95,0.00027397,2]
[327446948,1716078640884,-324.46330017,0.00027397,2]
[327446949,1716078640894,-500.0,0.00027397,2]
[327446950,1716078640904,-1030.53,0.00027397,2]
[327446951,1716078640914,-300.56201522,0.00027397,2]
[327446952,1716078640924,-500.0,0.00027397,2]
[327446953,1716078640934,-500.0,0.00027397,2]
[327446954,1716078640944,-500.0,0.00027397,2]
[327446955,1716078640953,-502.13,0.00027397,2]
[327446956,1716078640963,-500.0,0.00027397,2]
[327446957,1716078640973,-500.0,0.00027397,2]
[327446959,1716078640983,-500.0,0.00027397,2]
[327446961,1716078640992,-1000.0,0.00027397,2]
[327446962,1716078641002,-379.40962051,0.00027397,2]
[327446963,1716078641011,-500.0,0.00027397,2]
[327446964,1716078641022,-500.0,0.00027397,2]
[327446965,1716078641031,-500.0,0.00027397,2]
[327446967,1716078641040,-500.0,0.00027397,2]
[327446969,1716078641049,-500.0,0.00027397,2]
[327446971,1716078641058,-583.65,0.00027397,2]
[327446973,1716078641069,-1044.26,0.00027397,2]
[327446974,1716078641079,-500.0,0.00027397,2]
[327446976,1716078641088,-648.82,0.00027397,2]
[327446978,1716078641098,-574.36,0.00027397,2]
[327446981,1716078641107,-537.0,0.00027397,2]
[327446983,1716078641117,-500.0,0.00027397,2]
[327446985,1716078641127,-500.0,0.00027397,2]
[327446986,1716078641136,-500.0,0.00027397,2]
[327446989,1716078641146,-500.0,0.00027397,2]
[327446991,1716078641156,-500.0,0.00027397,2]
[327446992,1716078641166,-500.0,0.00027397,2]
[327446995,1716078641176,-500.0,0.00027397,2]
[327446997,1716078641186,-500.0,0.00027397,2]
[327446999,1716078641196,-505.89,0.00027397,2]
[327447001,1716078641205,-737.65,0.00027397,2]
[327447003,1716078641215,-500.0,0.00027397,2]
[327447005,1716078641225,-500.0,0.00027397,2]
[327447007,1716078641234,-500.0,0.00027397,2]
[327447009,1716078641244,-500.0,0.00027397,2]
[327447011,1716078641253,-500.0,0.00027397,2]
[327447013,1716078641263,-500.0,0.00027397,2]
[327447015,1716078641276,-500.0,0.00027397,2]
[327447017,1716078641287,-500.0,0.00027397,2]
[327447018,1716078641296,-500.0,0.00027397,2]
[327447020,1716078641306,-500.0,0.00027397,2]
[327447022,1716078641316,-500.0,0.00027397,2]
[327447025,1716078641326,-500.0,0.00027397,2]
[327447026,1716078641336,-500.0,0.00027397,2]
[327447028,1716078641346,-500.0,0.00027397,2]
[327447030,1716078641358,-500.0,0.00027397,2]
[327447032,1716078641368,-577.98,0.00027397,2]
[327447034,1716078641378,-500.0,0.00027397,2]
[327447037,1716078641388,-500.0,0.00027397,2]
[327447038,1716078641398,-500.0,0.00027397,2]
[327447039,1716078641408,-500.0,0.00027397,2]
[327447040,1716078641418,-500.0,0.00027397,2]
[327447041,1716078641428,-531.85,0.00027397,2]
[327447042,1716078641438,-500.0,0.00027397,2]
[327447043,1716078641449,-500.0,0.00027397,2]
[327447044,1716078641460,-500.0,0.00027397,2]
[327447045,1716078641470,-500.0,0.00027397,2]
[327447046,1716078641480,-500.0,0.00027397,2]
[327447047,1716078641490,-630.47,0.00027397,2]
[327447048,1716078641500,-500.0,0.00027397,2]
[327447049,1716078641510,-921.62,0.00027397,2]
[327447050,1716078641520,-598.64,0.00027397,2]
[327447051,1716078641530,-500.0,0.00027397,2]
[327447052,1716078641540,-597.35,0.00027397,2]
[327447053,1716078641550,-678.99,0.00027397,2]
[327447054,1716078641560,-500.0,0.00027397,2]
[327447055,1716078641570,-500.0,0.00027397,2]
[327447056,1716078641580,-1138.39,0.00027397,2]
[327447057,1716078641589,-596.25,0.00027397,2]
[327447058,1716078641599,-500.0,0.00027397,2]
[327447059,1716078641609,-500.0,0.00027397,2]
[327447060,1716078641619,-500.0,0.00027397,2]
[327447061,1716078641628,-500.0,0.00027397,2]
[327447062,1716078641638,-500.0,0.00027397,2]
[327447063,1716078641647,-827.83,0.00027397,2]
[327447064,1716078641657,-500.0,0.00027397,2]
[327447065,1716078641667,-500.0,0.00027397,2]
[327447066,1716078641677,-500.0,0.00027397,2]
[327447067,1716078641687,-500.0,0.00027397,2]
[327447068,1716078641698,-500.0,0.00027397,2]
[327447069,1716078641708,-890.31,0.00027397,2]
[327447070,1716078641718,-1011.91,0.00027397,2]
[327447071,1716078641727,-500.0,0.00027397,2]
[327447072,1716078641737,-500.0,0.00027397,2]
[327447073,1716078641747,-500.0,0.00027397,2]
[327447074,1716078641757,-655.15,0.00027397,2]
[327447075,1716078641767,-500.0,0.00027397,2]
[327447076,1716078641777,-500.0,0.00027397,2]
[327447077,1716078641787,-393.29,0.00027397,2]
[327447078,1716078641797,-672.45,0.00027397,2]
[327447079,1716078641807,-500.0,0.00027397,2]
[327447080,1716078641816,-500.0,0.00027397,2]
[327447081,1716078641826,-500.0,0.00027397,2]
[327447082,1716078641835,-500.0,0.00027397,2]
[327447083,1716078641845,-500.0,0.00027397,2]
[327447084,1716078641854,-500.0,0.00027397,2]
[327447085,1716078641864,-504.05,0.00027397,2]
[327447086,1716078641873,-689.56,0.00027397,2]
[327447087,1716078641883,-500.0,0.00027397,2]
[327447088,1716078641892,-500.0,0.00027397,2]
[327447089,1716078641902,-611.06,0.00027397,2]
[327447090,1716078641912,-500.0,0.00027397,2]
[327447091,1716078641922,-500.0,0.00027397,2]
[327447092,1716078641934,-633.75,0.00027397,2]
[327447093,1716078641946,-500.0,0.00027397,2]
[327447094,1716078641956,-500.0,0.00027397,2]
[327447095,1716078641966,-898.71,0.00027397,2]
[327447096,1716078641976,-900.3,0.00027397,2]
[327447097,1716078641986,-500.0,0.00027397,2]
[327447098,1716078641996,-500.0,0.00027397,2]
[327447099,1716078642006,-500.0,0.00027397,2]
[327447100,1716078642016,-534.55,0.00027397,2]
[327447101,1716078642026,-523.89,0.00027397,2]
[327447102,1716078642036,-569.19,0.00027397,2]
[327447103,1716078642045,-500.0,0.00027397,2]
[327447104,1716078642055,-500.0,0.00027397,2]
[327447105,1716078642064,-500.0,0.00027397,2]
[327447106,1716078642074,-500.0,0.00027397,2]
[327447107,1716078642084,-500.0,0.00027397,2]
[327447108,1716078642093,-500.0,0.00027397,2]
[327447109,1716078642103,-1239.6,0.00027397,2]
[327447110,1716078642112,-500.0,0.00027397,2]
[327447111,1716078642122,-500.0,0.00027397,2]
[327447112,1716078642131,-637.24,0.00027397,2]
[327447113,1716078642141,-748.98,0.00027397,2]
[327447114,1716078642151,-500.0,0.00027397,2]
[327447115,1716078642160,-500.0,0.00027397,2]
[327447116,1716078642170,-527.94,0.00027397,2]
[327447117,1716078642180,-500.0,0.00027397,2]
[327447118,1716078642189,-832.73,0.00027397,2]
[327447119,1716078642199,-500.0,0.00027397,2]
[327447120,1716078642209,-551.34,0.00027397,2]
[327447121,1716078642219,-500.0,0.00027397,2]
[327447122,1716078642228,-500.0,0.00027397,2]
[327447123,1716078642238,-500.0,0.00027397,2]
[327447124,1716078642247,-500.0,0.00027397,2]
[327447125,1716078642257,-500.0,0.00027397,2]
[327447126,1716078642268,-500.0,0.00027397,2]
[327447127,1716078642279,-500.0,0.00027397,2]
[327447128,1716078642289,-500.0,0.00027397,2]
[327447129,1716078642298,-876.87,0.00027397,2]
[327447130,1716078642309,-500.0,0.00027397,2]
[327447131,1716078642318,-500.0,0.00027397,2]
[327447132,1716078642328,-500.0,0.00027397,2]
[327447133,1716078642338,-812.13,0.00027397,2]
[327447134,1716078642347,-879.18,0.00027397,2]
[327447135,1716078642356,-500.0,0.00027397,2]
[327447136,1716078642366,-500.0,0.00027397,2]
[327447137,1716078642375,-500.0,0.00027397,2]
[327447138,1716078642385,-648.2,0.00027397,2]
[327447139,1716078642395,-500.0,0.00027397,2]
[327447140,1716078642405,-1583.82,0.00027397,2]
[327447141,1716078642415,-500.0,0.00027397,2]
[327447142,1716078642425,-1475.35,0.00027397,2]
[327447143,1716078642435,-574.442238,0.00027397,2]
[327447144,1716078642445,-895.82,0.00027397,2]
[327447145,1716078642455,-500.0,0.00027397,2]
[327447146,1716078642464,-500.0,0.00027397,2]
[327447147,1716078642474,-500.0,0.00027397,2]
[327447148,1716078642483,-500.0,0.00027397,2]
[327447149,1716078642493,-500.0,0.00027397,2]
[327447150,1716078642502,-670.03,0.00027397,2]
[327447151,1716078642512,-252.39559595,0.00027397,2]
[327447152,1716078642521,-500.0,0.00027397,2]
[327447153,1716078642531,-882.87,0.00027397,2]
[327447154,1716078642540,-500.0,0.00027397,2]
[327447155,1716078642550,-500.0,0.00027397,2]
[327447156,1716078642559,-500.0,0.00027397,2]
[327447157,1716078642569,-500.0,0.00027397,2]
[327447158,1716078642579,-500.0,0.00027397,2]
[327447159,1716078642588,-500.0,0.00027397,2]
[327447160,1716078642598,-580.61,0.00027397,2]
[327447161,1716078642608,-500.0,0.00027397,2]
[327447162,1716078642618,-500.0,0.00027397,2]
[327447163,1716078642628,-500.0,0.00027397,2]
[327447164,1716078642638,-545.97,0.00027397,2]
[327447165,1716078642648,-500.0,0.00027397,2]
[327447166,1716078642658,-183.4310685,0.00027397,2]
[327447167,1716078642668,-500.0,0.00027397,2]
[327447168,1716078642678,-500.0,0.00027397,2]
[327447169,1716078642687,-500.0,0.00027397,2]
[327447170,1716078642696,-500.0,0.00027397,2]
[327447171,1716078642706,-500.0,0.00027397,2]
[327447172,1716078642716,-500.0,0.00027397,2]
[327447173,1716078642726,-500.0,0.00027397,2]
[327447174,1716078642735,-500.0,0.00027397,2]
[327447175,1716078642745,-500.0,0.00027397,2]
[327447176,1716078642755,-529.56,0.00027397,2]
[327447177,1716078642764,-500.0,0.00027397,2]
[327447178,1716078642773,-500.0,0.00027397,2]
[327447179,1716078642783,-500.0,0.00027397,2]
[327447180,1716078642793,-500.0,0.00027397,2]
[327447181,1716078642802,-2239.3,0.00027397,2]
[327447182,1716078642813,-500.0,0.00027397,2]
[327447183,1716078642822,-619.46,0.00027397,2]
[327447184,1716078642832,-823.42,0.00027397,2]
[327447185,1716078642841,-500.0,0.00027397,2]
[327447186,1716078642851,-500.0,0.00027397,2]
[327447187,1716078642861,-500.0,0.00027397,2]
[327447188,1716078642870,-500.0,0.00027397,2]
[327447189,1716078642880,-500.0,0.00027397,2]
[327447190,1716078642889,-500.0,0.00027397,2]
[327447191,1716078642898,-899.65,0.00027397,2]
[327447192,1716078642908,-541.86,0.00027397,2]
[327447193,1716078642917,-716.2,0.00027397,2]
[327447194,1716078642928,-621.68,0.00027397,2]
[327447195,1716078642937,-669.33,0.00027397,2]
[327447196,1716078642947,-1398.84,0.00027397,2]
[327447197,1716078642956,-244.72090364,0.00027397,2]
[327447198,1716078642965,-557.15,0.00027397,2]
[327447199,1716078642975,-500.0,0.00027397,2]
[327447200,1716078642984,-500.0,0.00027397,2]
[327447201,1716078642994,-500.0,0.00027397,2]
[327447202,1716078643003,-500.0,0.00027397,2]
[327447203,1716078643013,-500.0,0.00027397,2]
[327447204,1716078643023,-735.95,0.00027397,2]
[327447205,1716078643033,-669.0,0.00027397,2]
[327447206,1716078643043,-500.0,0.00027397,2]
[327447207,1716078643052,-753.99,0.00027397,2]
[327447208,1716078643062,-1923.63,0.00027397,2]
[327447209,1716078643072,-884.1,0.00027397,2]
[327447210,1716078643082,-500.0,0.00027397,2]
[327447211,1716078643092,-500.0,0.00027397,2]
[327447212,1716078643101,-656.37,0.00027397,2]
[327447213,1716078643111,-500.0,0.00027397,2]
[327447214,1716078643121,-500.0,0.00027397,2]
[327447215,1716078643130,-500.0,0.00027397,2]
[327447216,1716078643140,-500.0,0.00027397,2]
[327447217,1716078643150,-928.15,0.00027397,2]
[327447218,1716078643160,-500.0,0.00027397,2]
[327447219,1716078643169,-500.0,0.00027397,2]
[327447225,1716078643401,-806.75,0.00027397,2]
[327447226,1716078643413,-685.35,0.00027397,2]
[327447227,1716078643424,-500.0,0.00027397,2]
[327447228,1716078643435,-648.92,0.00027397,2]
[327447229,1716078643445,-500.0,0.00027397,2]
[327447230,1716078643455,-500.0,0.00027397,2]
[327447231,1716078643464,-500.0,0.00027397,2]
[327447232,1716078643474,-500.0,0.00027397,2]
[327447233,1716078643484,-500.0,0.00027397,2]
[327447234,1716078643493,-500.0,0.00027397,2]
[327447235,1716078643502,-500.0,0.00027397,2]
[327447236,1716078643512,-500.0,0.00027397,2]
[327447237,1716078643522,-813.03,0.00027397,2]
[327447238,1716078643532,-614.14,0.00027397,2]
[327447239,1716078643542,-567.5293062,0.00027397,2]
[327447240,1716078643552,-500.0,0.00027397,2]
[327447241,1716078643562,-500.0,0.00027397,2]
[327447242,1716078643571,-791.44,0.00027397,2]
[327447243,1716078643581,-500.0,0.00027397,2]
[327447244,1716078643591,-154.36476834,0.00027397,2]
[327447245,1716078643599,-500.0,0.00027397,2]
[327447246,1716078643609,-500.0,0.00027397,2]
[327447247,1716078643619,-500.0,0.00027397,2]
[327447248,1716078643628,-500.0,0.00027397,2]
[327447249,1716078643637,-1036.27,0.00027397,2]
[327447250,1716078643647,-693.8,0.00027397,2]
[327447251,1716078643656,-500.0,0.00027397,2]
[327447252,1716078643666,-500.0,0.00027397,2]
[327447253,1716078643676,-1117.96,0.00027397,2]
[327447254,1716078643685,-774.17,0.00027397,2]
[327447255,1716078643695,-500.0,0.00027397,2]
[327447256,1716078643705,-500.0,0.00027397,2]
[327447257,1716078643715,-500.0,0.00027397,2]
[327447258,1716078643725,-500.0,0.00027397,2]
[327447259,1716078643735,-500.0,0.00027397,2]
[327447260,1716078643744,-500.0,0.00027397,2]
[327447261,1716078643754,-500.0,0.00027397,2]
[327447262,1716078643764,-500.0,0.00027397,2]
[327447263,1716078643773,-554.73,0.00027397,2]
[327447264,1716078643782,-500.0,0.00027397,2]
[327447265,1716078643792,-762.69,0.00027397,2]
[327447266,1716078643801,-500.0,0.00027397,2]
[327447267,1716078643811,-500.0,0.00027397,2]
[327447268,1716078643821,-500.0,0.00027397,2]
[327447269,1716078643830,-500.0,0.00027397,2]
[327447270,1716078643840,-500.0,0.00027397,2]
[327447271,1716078643850,-500.0,0.00027397,2]
[327447272,1716078643859,-500.0,0.00027397,2]
[327447273,1716078643870,-500.0,0.00027397,2]
[327447274,1716078643879,-150.0,0.00027397,2]
[327447275,1716078643889,-636.82,0.00027397,2]
[327447276,1716078643898,-1681.9,0.00027397,2]
[327447277,1716078643908,-500.0,0.00027397,2]
[327447278,1716078643917,-1315.61,0.00027397,2]
[327447279,1716078643928,-500.0,0.00027397,2]
[327447281,1716078643938,-500.0,0.00027397,2]
[327447283,1716078643947,-518.65,0.00027397,2]
[327447285,1716078643957,-578.45,0.00027397,2]
[327447286,1716078643966,-1008.21,0.00027397,2]
[327447287,1716078643975,-500.0,0.00027397,2]
[327447288,1716078643985,-500.0,0.00027397,2]
[327447289,1716078643994,-500.0,0.00027397,2]
[327447290,1716078644004,-500.0,0.00027397,2]
[327447291,1716078644014,-500.0,0.00027397,2]
[327447292,1716078644024,-500.0,0.00027397,2]
[327447293,1716078644034,-500.0,0.00027397,2]
[327447294,1716078644044,-512.39,0.00027397,2]
[327447295,1716078644053,-665.8,0.00027397,2]
[327447296,1716078644063,-1367.82,0.00027397,2]
[327447297,1716078644072,-500.0,0.00027397,2]
[327447298,1716078644082,-500.0,0.00027397,2]
[327447299,1716078644091,-500.0,0.00027397,2]
[327447300,1716078644100,-500.0,0.00027397,2]
[327447301,1716078644111,-500.0,0.00027397,2]
[327447302,1716078644120,-966.33,0.00027397,2]
[327447303,1716078644130,-911.7,0.00027397,2]
[327447304,1716078644139,-500.0,0.00027397,2]
[327447305,1716078644149,-439.61436047,0.00027397,2]
[327447306,1716078644159,-500.0,0.00027397,2]
[327447307,1716078644168,-957.33,0.00027397,2]
[327447308,1716078644178,-500.0,0.00027397,2]
[327447309,1716078644189,-500.0,0.00027397,2]
[327447310,1716078644200,-500.0,0.00027397,2]
[327447311,1716078644209,-1131.82,0.00027397,2]
[327447312,1716078644219,-500.0,0.00027397,2]
[327447313,1716078644229,-500.0,0.00027397,2]
[327447314,1716078644241,-500.0,0.00027397,2]
[327447315,1716078644250,-506.82675492,0.00027397,2]
[327447316,1716078644261,-1166.35,0.00027397,2]
[327447317,1716078644273,-500.0,0.00027397,2]
[327447318,1716078644283,-500.0,0.00027397,2]
[327447319,1716078644293,-500.0,0.00027397,2]
[327447320,1716078644302,-321.22647184,0.00027397,2]
[327447321,1716078644313,-500.0,0.00027397,2]
[327447322,1716078644322,-500.0,0.00027397,2]
[327447323,1716078644332,-862.14,0.00027397,2]
[327447324,1716078644342,-960.69,0.00027397,2]
[327447325,1716078644352,-654.36,0.00027397,2]
[327447326,1716078644361,-522.68,0.00027397,2]
[327447327,1716078644372,-500.0,0.00027397,2]
[327447328,1716078644381,-500.0,0.00027397,2]
[327447329,1716078644392,-500.0,0.00027397,2]
[327447330,1716078644401,-500.0,0.00027397,2]
[327447331,1716078644411,-500.0,0.00027397,2]
[327447332,1716078644421,-1298.17,0.00027397,2]
[327447333,1716078644430,-500.0,0.00027397,2]
[327447334,1716078644440,-852.23,0.00027397,2]
[327447335,1716078644450,-500.0,0.00027397,2]
[327447336,1716078644461,-500.0,0.00027397,2]
[327447337,1716078644471,-500.0,0.00027397,2]
[327447338,1716078644480,-500.0,0.00027397,2]
[327447339,1716078644490,-516.09,0.00027397,2]
[327447340,1716078644499,-500.0,0.00027397,2]
[327447341,1716078644508,-641.81,0.00027397,2]
[327447342,1716078644518,-500.0,0.00027397,2]
[327447343,1716078644529,-500.0,0.00027397,2]
[327447344,1716078644538,-1049.32,0.00027397,2]
[327447345,1716078644548,-500.0,0.00027397,2]
[327447346,1716078644558,-500.0,0.00027397,2]
[327447347,1716078644568,-500.0,0.00027397,2]
[327447348,1716078644580,-559.84,0.00027397,2]
[327447349,1716078644590,-920.0,0.00027397,2]
[327447350,1716078644600,-500.0,0.00027397,2]
[327447351,1716078644611,-500.0,0.00027397,2]
[327447352,1716078644621,-500.0,0.00027397,2]
[327447353,1716078644631,-500.0,0.00027397,2]
[327447354,1716078644640,-500.0,0.00027397,2]
[327447355,1716078644649,-500.0,0.00027397,2]
[327447356,1716078644660,-500.0,0.00027397,2]
[327447357,1716078644670,-500.0,0.00027397,2]
[327447358,1716078644680,-1059.88,0.00027397,2]
[327447359,1716078644690,-1239.43,0.00027397,2]
[327447360,1716078644699,-500.0,0.00027397,2]
[327447361,1716078644708,-930.82,0.00027397,2]
[327447362,1716078644718,-500.0,0.00027397,2]
[327447363,1716078644728,-896.18,0.00027397,2]
[327447364,1716078644739,-1090.58,0.00027397,2]
[327447365,1716078644749,-500.0,0.00027397,2]
[327447366,1716078644760,-500.0,0.00027397,2]
[327447367,1716078644770,-501.2,0.00027397,2]
[327447368,1716078644780,-568.47,0.00027397,2]
[327447369,1716078644790,-756.03,0.00027397,2]
[327447370,1716078644800,-3708.29,0.00027397,2]
[327447371,1716078644810,-634.45,0.00027397,2]
[327447372,1716078644819,-294.52669691,0.00027397,2]
[327447373,1716078644829,-669.45,0.00027397,2]
[327447374,1716078644838,-500.0,0.00027397,2]
[327447375,1716078644847,-640.29,0.00027397,2]
[327447376,1716078644857,-1188.88,0.00027397,2]
[327447377,1716078644867,-517.26931466,0.00027397,2]
[327447378,1716078644876,-574.2,0.00027397,2]
[327447379,1716078644886,-500.0,0.00027397,2]
[327447380,1716078644895,-515.12778855,0.00027397,2]
[327447381,1716078644906,-500.0,0.00027397,2]
[327447382,1716078644914,-1706.37,0.00027397,2]
[327447383,1716078644925,-501.03,0.00027397,2]
[327447384,1716078644934,-500.0,0.00027397,2]
[327447385,1716078644944,-500.0,0.00027397,2]
[327447386,1716078644953,-604.36,0.00027397,2]
[327447387,1716078644963,-14019.56160839,0.00027397,2]
[327447388,1716078644995,-4483.58839161,0.00027397,2]
[327447389,1716078645005,-500.0,0.00027397,2]
[327447390,1716078645014,-504.18592349,0.00027397,2]
[327447391,1716078645024,-500.0,0.00027397,2]
[327447392,1716078645033,-500.0,0.00027397,2]
[327447393,1716078645043,-3042.71,0.00027397,2]
[327447394,1716078645053,-505.68305749,0.00027397,2]
[327447395,1716078645062,-918.3,0.00027397,2]
[327447396,1716078645072,-673.49,0.00027397,2]
[327447397,1716078645082,-500.0,0.00027397,2]